[Event "*** Titled Tuesday Blitz"]
[Site "Chess.com"]
[Date "2020.04.28"]
[Round "5"]
[White "Kate1606"]
[Black "Caterpiller35"]
[Result "0-1"]
[WhiteElo "2023"]
[BlackElo "2303"]
[TimeControl "180+1"]
[EndTime "10:58:02 PDT"]
[Termination "Caterpiller35 won by checkmate"]

1. e4 {[%clk 0:03:00.9]} 1... c5 {[%clk 0:02:59.8]} 2. Nc3 {[%clk 0:02:59.5]}
2... a6 {[%clk 0:02:59]} 3. Nf3 {[%clk 0:02:56]} 3... Nc6 {[%clk 0:02:58.6]} 4.
d4 {[%clk 0:02:50.4]} 4... cxd4 {[%clk 0:02:59.5]} 5. Nxd4 {[%clk 0:02:50.6]}
5... e5 {[%clk 0:02:57.7]} 6. Nf5 {[%clk 0:02:43.6]} 6... Nf6 {[%clk 0:02:56.7]}
7. Nd6+ {[%clk 0:02:35.7]} 7... Bxd6 {[%clk 0:02:53.8]} 8. Qxd6 {[%clk
0:02:36.6]} 8... Qe7 {[%clk 0:02:54.1]} 9. Qxe7+ {[%clk 0:02:35.4]} 9... Kxe7
{[%clk 0:02:46.9]} 10. Bg5 {[%clk 0:02:33.4]} 10... Nd4 {[%clk 0:02:39.2]} 11.
O-O-O {[%clk 0:02:15.9]} 11... b5 {[%clk 0:02:35.7]} 12. Nd5+ {[%clk 0:02:13.2]}
12... Kd6 {[%clk 0:01:45.4]} 13. Nxf6 {[%clk 0:02:10.7]} 13... gxf6 {[%clk
0:01:45.5]} 14. Bxf6 {[%clk 0:02:10.7]} 14... Rg8 {[%clk 0:01:44.6]} 15. c3
{[%clk 0:02:09.3]} 15... Ke6 {[%clk 0:01:44.4]} 16. Bxe5 {[%clk 0:01:43.2]}
16... Kxe5 {[%clk 0:01:40.9]} 17. cxd4+ {[%clk 0:01:13.9]} 17... Kxe4 {[%clk
0:01:39.4]} 18. g3 {[%clk 0:01:14.2]} 18... Kf5 {[%clk 0:01:31.1]} 19. Bg2
{[%clk 0:01:13.9]} 19... Rb8 {[%clk 0:01:29.9]} 20. Rhe1 {[%clk 0:01:11.7]}
20... Bb7 {[%clk 0:01:28.8]} 21. Bh3+ {[%clk 0:00:58.3]} 21... Kf6 {[%clk
0:01:26.2]} 22. Bxd7 {[%clk 0:00:55.7]} 22... Rgd8 {[%clk 0:01:25.1]} 23. Bh3
{[%clk 0:00:53.9]} 23... Bd5 {[%clk 0:01:16]} 24. Kb1 {[%clk 0:00:52.7]} 24...
h5 {[%clk 0:01:08.1]} 25. f4 {[%clk 0:00:50.8]} 25... h4 {[%clk 0:00:45]} 26. g4
{[%clk 0:00:49.4]} 26... Re8 {[%clk 0:00:42.7]} 27. g5+ {[%clk 0:00:49]} 27...
Kg6 {[%clk 0:00:42.3]} 28. Re5 {[%clk 0:00:45.3]} 28... Bf3 {[%clk 0:00:37.5]}
29. Rde1 {[%clk 0:00:43.5]} 29... Red8 {[%clk 0:00:36.3]} 30. Bf5+ {[%clk
0:00:30]} 30... Kg7 {[%clk 0:00:31.7]} 31. R1e3 {[%clk 0:00:20.6]} 31... Bh5
{[%clk 0:00:30.9]} 32. d5 {[%clk 0:00:20.4]} 32... Rb6 {[%clk 0:00:27.7]} 33.
Rd3 {[%clk 0:00:19]} 33... Rbd6 {[%clk 0:00:24.2]} 34. Be4 {[%clk 0:00:18.3]}
34... Be2 {[%clk 0:00:20.4]} 35. Rd2 {[%clk 0:00:17.6]} 35... Bg4 {[%clk
0:00:19.4]} 36. b3 {[%clk 0:00:16.8]} 36... h3 {[%clk 0:00:16.1]} 37. f5 {[%clk
0:00:15.4]} 37... f6 {[%clk 0:00:12.9]} 38. Re7+ {[%clk 0:00:13.3]} 38... Kf8
{[%clk 0:00:12.8]} 39. gxf6 {[%clk 0:00:10.4]} 39... Rxf6 {[%clk 0:00:13.7]} 40.
Rh7 {[%clk 0:00:08]} 40... Bxf5 {[%clk 0:00:10.6]} 41. Bxf5 {[%clk 0:00:06.9]}
41... Rxf5 {[%clk 0:00:10.5]} 42. Rh8+ {[%clk 0:00:05.9]} 42... Ke7 {[%clk
0:00:10.7]} 43. Rxd8 {[%clk 0:00:06.4]} 43... Kxd8 {[%clk 0:00:11.2]} 44. Kb2
{[%clk 0:00:06.5]} 44... Rg5 {[%clk 0:00:11.2]} 45. d6 {[%clk 0:00:04.4]} 45...
Rg2 {[%clk 0:00:10.3]} 46. Kc3 {[%clk 0:00:04.8]} 46... Kd7 {[%clk 0:00:10.1]}
47. Rd3 {[%clk 0:00:04.4]} 47... Rxh2 {[%clk 0:00:09.8]} 48. Kb4 {[%clk
0:00:04.2]} 48... Rxa2 {[%clk 0:00:09.1]} 49. Kc5 {[%clk 0:00:04.1]} 49... h2
{[%clk 0:00:08.3]} 50. Rh3 {[%clk 0:00:03.7]} 50... Rc2+ {[%clk 0:00:08.6]} 51.
Kb6 {[%clk 0:00:04.1]} 51... Kxd6 {[%clk 0:00:08.7]} 52. Kxa6 {[%clk 0:00:04.4]}
52... Kc5 {[%clk 0:00:08.9]} 53. Rh5+ {[%clk 0:00:03.9]} 53... Kd4 {[%clk
0:00:07.1]} 54. Kxb5 {[%clk 0:00:03.3]} 54... Rb2 {[%clk 0:00:06.9]} 55. b4
{[%clk 0:00:03.7]} 55... Kc3 {[%clk 0:00:06.6]} 56. Rh3+ {[%clk 0:00:02.5]}
56... Kd4 {[%clk 0:00:05.2]} 57. Rh4+ {[%clk 0:00:03.1]} 57... Kc3 {[%clk
0:00:05.2]} 58. Rh3+ {[%clk 0:00:03.4]} 58... Kd4 {[%clk 0:00:05.7]} 59. Rh4+
{[%clk 0:00:04]} 59... Kd5 {[%clk 0:00:06.2]} 60. Rh5+ {[%clk 0:00:04.4]} 60...
Kd6 {[%clk 0:00:06.2]} 61. Rh6+ {[%clk 0:00:05]} 61... Ke5 {[%clk 0:00:06.7]}
62. Rh5+ {[%clk 0:00:05.1]} 62... Kf4 {[%clk 0:00:07]} 63. Ka5 {[%clk
0:00:04.5]} 63... Ra2+ {[%clk 0:00:06.8]} 64. Kb6 {[%clk 0:00:04.3]} 64... Kg4
{[%clk 0:00:06.8]} 65. Rh8 {[%clk 0:00:03.9]} 65... Rb2 {[%clk 0:00:04.4]} 66.
b5 {[%clk 0:00:04.1]} 66... Kg3 {[%clk 0:00:04.7]} 67. Ka6 {[%clk 0:00:03.1]}
67... Ra2+ {[%clk 0:00:05]} 68. Kb7 {[%clk 0:00:03.1]} 68... Ra4 {[%clk
0:00:05.6]} 69. b6 {[%clk 0:00:03.3]} 69... Rh4 {[%clk 0:00:05.3]} 70. Rg8+
{[%clk 0:00:03.3]} 70... Kf2 {[%clk 0:00:04.8]} 71. Rf8+ {[%clk 0:00:03.4]}
71... Ke2 {[%clk 0:00:04.5]} 72. Re8+ {[%clk 0:00:03.6]} 72... Kd2 {[%clk
0:00:04.8]} 73. Rd8+ {[%clk 0:00:03.3]} 73... Kc2 {[%clk 0:00:05]} 74. Ka8
{[%clk 0:00:02]} 74... h1=Q+ {[%clk 0:00:04.4]} 75. b7 {[%clk 0:00:02.9]} 75...
Ra4+ {[%clk 0:00:03.6]} 76. Kb8 {[%clk 0:00:03.3]} 76... Rb4 {[%clk 0:00:04.1]}
77. Kc8 {[%clk 0:00:02.5]} 77... Qxb7# {[%clk 0:00:03.1]} 0-1

[Event "*** Titled Tuesday Blitz"]
[Site "Chess.com"]
[Date "2020.04.28"]
[Round "5"]
[White "elisak43"]
[Black "IMRosen"]
[Result "0-1"]
[WhiteElo "2390"]
[BlackElo "2561"]
[TimeControl "180+1"]
[EndTime "10:58:05 PDT"]
[Termination "IMRosen won by checkmate"]

1. Nf3 {[%clk 0:03:00.9]} 1... d5 {[%clk 0:02:59.2]} 2. c4 {[%clk 0:03:01.1]}
2... e6 {[%clk 0:02:59.3]} 3. g3 {[%clk 0:03:00.7]} 3... Nf6 {[%clk 0:02:58.3]}
4. Bg2 {[%clk 0:03:01.2]} 4... Be7 {[%clk 0:02:56.9]} 5. b3 {[%clk 0:03:01.6]}
5... O-O {[%clk 0:02:54]} 6. O-O {[%clk 0:03:01.7]} 6... a5 {[%clk 0:02:51.4]}
7. a3 {[%clk 0:02:58.8]} 7... a4 {[%clk 0:02:39.9]} 8. cxd5 {[%clk 0:02:53.9]}
8... exd5 {[%clk 0:02:17.6]} 9. b4 {[%clk 0:02:50.6]} 9... c6 {[%clk 0:02:10.5]}
10. Bb2 {[%clk 0:02:46]} 10... Bf5 {[%clk 0:02:08.5]} 11. d3 {[%clk 0:02:46.2]}
11... Nbd7 {[%clk 0:02:04.5]} 12. Nc3 {[%clk 0:02:38.7]} 12... Nb6 {[%clk
0:01:59.2]} 13. Rc1 {[%clk 0:02:27]} 13... Re8 {[%clk 0:01:58.7]} 14. e3 {[%clk
0:01:47.4]} 14... h6 {[%clk 0:01:55.7]} 15. Qd2 {[%clk 0:01:45.2]} 15... Qd7
{[%clk 0:01:45.2]} 16. Ne2 {[%clk 0:01:43]} 16... Bh3 {[%clk 0:01:41.1]} 17. Bd4
{[%clk 0:01:39.1]} 17... Bxg2 {[%clk 0:01:33.1]} 18. Kxg2 {[%clk 0:01:40]} 18...
Nc8 {[%clk 0:01:33.6]} 19. Ne5 {[%clk 0:01:35.2]} 19... Qf5 {[%clk 0:01:27.6]}
20. Nf3 {[%clk 0:01:20.7]} 20... Nd6 {[%clk 0:01:25.2]} 21. Bc5 {[%clk
0:01:09.7]} 21... Nb5 {[%clk 0:01:16.1]} 22. Ned4 {[%clk 0:01:06.3]} 22... Nxd4
{[%clk 0:01:10.1]} 23. Nxd4 {[%clk 0:01:05.8]} 23... Qd7 {[%clk 0:01:10.3]} 24.
Nf3 {[%clk 0:00:58.6]} 24... Bd6 {[%clk 0:01:05.1]} 25. Qb2 {[%clk 0:00:49.4]}
25... Re6 {[%clk 0:01:02.2]} 26. Bd4 {[%clk 0:00:46.2]} 26... Bf8 {[%clk
0:00:57.8]} 27. Rc2 {[%clk 0:00:32.2]} 27... Ne8 {[%clk 0:00:56.8]} 28. Bc5
{[%clk 0:00:29.6]} 28... Nc7 {[%clk 0:00:55.2]} 29. Rb1 {[%clk 0:00:26.5]} 29...
Nb5 {[%clk 0:00:55]} 30. Nd4 {[%clk 0:00:22.3]} 30... Nxd4 {[%clk 0:00:52.3]}
31. Bxd4 {[%clk 0:00:23.2]} 31... Rc8 {[%clk 0:00:44.4]} 32. Bc5 {[%clk
0:00:23.5]} 32... h5 {[%clk 0:00:41.5]} 33. Qd4 {[%clk 0:00:20.2]} 33... Bd6
{[%clk 0:00:29.6]} 34. Bxd6 {[%clk 0:00:19.7]} 34... Qxd6 {[%clk 0:00:29.1]} 35.
Rbc1 {[%clk 0:00:17.6]} 35... Rg6 {[%clk 0:00:17.5]} 36. Kf1 {[%clk 0:00:14.9]}
36... Qe6 {[%clk 0:00:17]} 37. Kg2 {[%clk 0:00:13.4]} 37... Rg4 {[%clk
0:00:15.2]} 38. Qb6 {[%clk 0:00:12]} 38... h4 {[%clk 0:00:08.6]} 39. Qxb7 {[%clk
0:00:11.6]} 39... h3+ {[%clk 0:00:09.2]} 40. Kf1 {[%clk 0:00:09.5]} 40... Rg6
{[%clk 0:00:07.3]} 41. b5 {[%clk 0:00:05.3]} 41... Qf5 {[%clk 0:00:06.6]} 42.
Ke2 {[%clk 0:00:04]} 42... Rf6 {[%clk 0:00:05.6]} 43. f4 {[%clk 0:00:03.9]}
43... Re8 {[%clk 0:00:04.7]} 44. Kf2 {[%clk 0:00:03.6]} 44... d4 {[%clk
0:00:02.6]} 45. e4 {[%clk 0:00:03.6]} 45... Qg4 {[%clk 0:00:02.2]} 46. bxc6
{[%clk 0:00:03.5]} 46... Rxf4+ {[%clk 0:00:02.3]} 47. gxf4 {[%clk 0:00:04.3]}
47... Qg2+ {[%clk 0:00:02.6]} 48. Ke1 {[%clk 0:00:04.1]} 48... Qg1+ {[%clk
0:00:03]} 49. Ke2 {[%clk 0:00:04.5]} 49... Qxh2+ {[%clk 0:00:03.4]} 50. Ke1
{[%clk 0:00:04.5]} 50... Qg1+ {[%clk 0:00:03.6]} 51. Ke2 {[%clk 0:00:05]} 51...
Qe3+ {[%clk 0:00:03.9]} 52. Kf1 {[%clk 0:00:05.2]} 52... Qxf4+ {[%clk
0:00:03.3]} 53. Ke2 {[%clk 0:00:05.5]} 53... Qg4+ {[%clk 0:00:03.3]} 54. Kf1
{[%clk 0:00:05.9]} 54... Qf3+ {[%clk 0:00:03.8]} 55. Kg1 {[%clk 0:00:05.7]}
55... Re6 {[%clk 0:00:03.9]} 56. Qb8+ {[%clk 0:00:05]} 56... Kh7 {[%clk
0:00:03.2]} 57. Kh2 {[%clk 0:00:04.8]} 57... Rg6 {[%clk 0:00:01.9]} 58. Rg1
{[%clk 0:00:05.2]} 58... Qxd3 {[%clk 0:00:01.5]} 59. Rxg6 {[%clk 0:00:04.3]}
59... Qxc2+ {[%clk 0:00:02.1]} 60. Kxh3 {[%clk 0:00:03.9]} 60... fxg6 {[%clk
0:00:02.2]} 61. Qg3 {[%clk 0:00:04.8]} 61... Qxc6 {[%clk 0:00:02.3]} 62. Qh4+
{[%clk 0:00:05]} 62... Kg8 {[%clk 0:00:02.9]} 63. Qd8+ {[%clk 0:00:05.1]} 63...
Kf7 {[%clk 0:00:03.7]} 64. e5 {[%clk 0:00:05.5]} 64... Qf3+ {[%clk 0:00:03.4]}
65. Kh2 {[%clk 0:00:05.2]} 65... Qf2+ {[%clk 0:00:03.9]} 66. Kh1 {[%clk
0:00:04.9]} 66... Qe1+ {[%clk 0:00:04.1]} 67. Kg2 {[%clk 0:00:05]} 67... Qe2+
{[%clk 0:00:04.7]} 68. Kg1 {[%clk 0:00:04.8]} 68... Qe3+ {[%clk 0:00:05.1]} 69.
Kg2 {[%clk 0:00:04.8]} 69... Qe4+ {[%clk 0:00:05.8]} 70. Kg1 {[%clk 0:00:05.1]}
70... Qxe5 {[%clk 0:00:06.4]} 71. Qd7+ {[%clk 0:00:05.3]} 71... Kf6 {[%clk
0:00:06.9]} 72. Qxa4 {[%clk 0:00:06.2]} 72... Qe3+ {[%clk 0:00:07.2]} 73. Kg2
{[%clk 0:00:06.1]} 73... Qe2+ {[%clk 0:00:06.8]} 74. Kg3 {[%clk 0:00:06]} 74...
Qe3+ {[%clk 0:00:06.6]} 75. Kg2 {[%clk 0:00:06.1]} 75... Qd2+ {[%clk 0:00:06.2]}
76. Kg3 {[%clk 0:00:04.8]} 76... Qc3+ {[%clk 0:00:06]} 77. Kg2 {[%clk
0:00:05.1]} 77... d3 {[%clk 0:00:06.6]} 78. Qa6+ {[%clk 0:00:05.2]} 78... Kf7
{[%clk 0:00:06.7]} 79. Qa7+ {[%clk 0:00:04.8]} 79... Kg8 {[%clk 0:00:06]} 80.
Qb8+ {[%clk 0:00:04.9]} 80... Kf7 {[%clk 0:00:05.9]} 81. Qb7+ {[%clk 0:00:04.6]}
81... Ke6 {[%clk 0:00:06]} 82. Qb6+ {[%clk 0:00:03.9]} 82... Kd5 {[%clk
0:00:05.6]} 83. Qb5+ {[%clk 0:00:04]} 83... Kd6 {[%clk 0:00:05]} 84. Qb8+ {[%clk
0:00:02.9]} 84... Kd7 {[%clk 0:00:05]} 85. Qb5+ {[%clk 0:00:01.1]} 85... Qc6+
{[%clk 0:00:04.6]} 86. Qxc6+ {[%clk 0:00:01.2]} 86... Kxc6 {[%clk 0:00:05.5]}
87. Kf3 {[%clk 0:00:02.1]} 87... Kc5 {[%clk 0:00:03.5]} 88. Ke3 {[%clk
0:00:02.3]} 88... Kc4 {[%clk 0:00:03.6]} 89. Kd2 {[%clk 0:00:02.2]} 89... g5
{[%clk 0:00:03.9]} 90. a4 {[%clk 0:00:03.1]} 90... g4 {[%clk 0:00:03.5]} 91. a5
{[%clk 0:00:03.1]} 91... g3 {[%clk 0:00:02.1]} 92. a6 {[%clk 0:00:04]} 92... g2
{[%clk 0:00:02.8]} 93. a7 {[%clk 0:00:04.5]} 93... g1=Q {[%clk 0:00:03.5]} 94.
a8=Q {[%clk 0:00:04.3]} 94... Qf2+ {[%clk 0:00:04]} 95. Kc1 {[%clk 0:00:04.2]}
95... Qc2# {[%clk 0:00:04.3]} 0-1

[Event "*** Titled Tuesday Blitz"]
[Site "Chess.com"]
[Date "2020.04.28"]
[Round "5"]
[White "freshfoodcompany"]
[Black "slowdgehammer"]
[Result "1-0"]
[WhiteElo "2211"]
[BlackElo "2337"]
[TimeControl "180+1"]
[EndTime "10:58:43 PDT"]
[Termination "freshfoodcompany won on time"]

1. d4 {[%clk 0:03:00.9]} 1... Nf6 {[%clk 0:02:59.5]} 2. c4 {[%clk 0:03:01]} 2...
g6 {[%clk 0:03:00.2]} 3. Nc3 {[%clk 0:03:00.8]} 3... Bg7 {[%clk 0:03:00.8]} 4.
e4 {[%clk 0:03:01]} 4... d6 {[%clk 0:03:01.4]} 5. Nf3 {[%clk 0:03:01.4]} 5...
O-O {[%clk 0:03:01.5]} 6. Be2 {[%clk 0:03:01.7]} 6... e5 {[%clk 0:02:58.6]} 7.
d5 {[%clk 0:03:01.3]} 7... a5 {[%clk 0:02:58.1]} 8. Bg5 {[%clk 0:03:01.1]} 8...
h6 {[%clk 0:02:56.1]} 9. Bh4 {[%clk 0:03:01.1]} 9... g5 {[%clk 0:02:54.8]} 10.
Bg3 {[%clk 0:02:59.9]} 10... Nh5 {[%clk 0:02:54.8]} 11. Nd2 {[%clk 0:02:58.3]}
11... Nf4 {[%clk 0:02:54.2]} 12. Bxf4 {[%clk 0:02:54.6]} 12... exf4 {[%clk
0:02:53.8]} 13. Bg4 {[%clk 0:02:53.7]} 13... Na6 {[%clk 0:02:46.7]} 14. Bxc8
{[%clk 0:02:49.9]} 14... Rxc8 {[%clk 0:02:39.6]} 15. O-O {[%clk 0:02:49.4]}
15... Qd7 {[%clk 0:02:34.9]} 16. h3 {[%clk 0:02:44.2]} 16... Nc5 {[%clk
0:02:33.1]} 17. Nb3 {[%clk 0:02:38]} 17... b6 {[%clk 0:02:32.8]} 18. Nxc5 {[%clk
0:02:34.5]} 18... bxc5 {[%clk 0:02:32.5]} 19. Qe2 {[%clk 0:02:29.8]} 19... a4
{[%clk 0:02:26.5]} 20. Nb5 {[%clk 0:02:25.9]} 20... Rfe8 {[%clk 0:02:15.1]} 21.
Qc2 {[%clk 0:02:08.6]} 21... Ra8 {[%clk 0:02:13.1]} 22. Rfe1 {[%clk 0:02:04.2]}
22... f3 {[%clk 0:02:02.9]} 23. Rad1 {[%clk 0:01:51.8]} 23... fxg2 {[%clk
0:01:59.3]} 24. Kxg2 {[%clk 0:01:47.1]} 24... Re5 {[%clk 0:01:49.4]} 25. Qe2
{[%clk 0:01:43.8]} 25... f5 {[%clk 0:01:44.6]} 26. Qf3 {[%clk 0:01:40.7]} 26...
Rf8 {[%clk 0:01:42.4]} 27. Re3 {[%clk 0:01:21.5]} 27... fxe4 {[%clk 0:01:36.3]}
28. Qg4 {[%clk 0:01:20.6]} 28... Qe7 {[%clk 0:01:26.2]} 29. Rde1 {[%clk
0:01:17.6]} 29... Ref5 {[%clk 0:00:49.1]} 30. R1e2 {[%clk 0:01:02.6]} 30... Kh7
{[%clk 0:00:36.6]} 31. Qxe4 {[%clk 0:00:54.7]} 31... Be5 {[%clk 0:00:32]} 32.
Na7 {[%clk 0:00:43.9]} 32... Kg7 {[%clk 0:00:27.3]} 33. Nc6 {[%clk 0:00:42.9]}
33... Qf6 {[%clk 0:00:28]} 34. Qc2 {[%clk 0:00:40.9]} 34... g4 {[%clk
0:00:17.1]} 35. hxg4 {[%clk 0:00:37.1]} 35... Rg5 {[%clk 0:00:16.4]} 36. Nxe5
{[%clk 0:00:36.5]} 36... dxe5 {[%clk 0:00:13.4]} 37. Qe4 {[%clk 0:00:36.2]}
37... h5 {[%clk 0:00:11.7]} 38. Rg3 {[%clk 0:00:31.3]} 38... h4 {[%clk 0:00:07]}
39. Rh3 {[%clk 0:00:30.8]} 39... Qf4 {[%clk 0:00:06.9]} 40. Qxf4 {[%clk
0:00:28.6]} 40... Rxf4 {[%clk 0:00:07.8]} 41. Rxh4 {[%clk 0:00:27.7]} 41... Rxc4
{[%clk 0:00:08.4]} 42. Kg3 {[%clk 0:00:23.8]} 42... Rd4 {[%clk 0:00:07.8]} 43.
f3 {[%clk 0:00:22.9]} 43... Rxd5 {[%clk 0:00:07.5]} 44. Re4 {[%clk 0:00:21.8]}
44... Rd4 {[%clk 0:00:07.5]} 45. Rxd4 {[%clk 0:00:18.3]} 45... cxd4 {[%clk
0:00:07.6]} 46. Rh1 {[%clk 0:00:18.7]} 46... Kf6 {[%clk 0:00:06.4]} 47. f4
{[%clk 0:00:18.3]} 47... exf4+ {[%clk 0:00:05.5]} 48. Kxf4 {[%clk 0:00:18.6]}
48... Rd5 {[%clk 0:00:06.1]} 49. Rh6+ {[%clk 0:00:18]} 49... Kg7 {[%clk
0:00:06.1]} 50. Ke4 {[%clk 0:00:17.2]} 50... Rd7 {[%clk 0:00:05.9]} 51. Rc6
{[%clk 0:00:15.5]} 51... d3 {[%clk 0:00:05.9]} 52. Rc1 {[%clk 0:00:15.5]} 52...
d2 {[%clk 0:00:06.1]} 53. Rd1 {[%clk 0:00:15.4]} 53... Kg6 {[%clk 0:00:06.8]}
54. Ke3 {[%clk 0:00:15.7]} 54... Kg5 {[%clk 0:00:07.1]} 55. Rxd2 {[%clk
0:00:16.1]} 55... Re7+ {[%clk 0:00:06.3]} 56. Kd3 {[%clk 0:00:16.2]} 56... Kxg4
{[%clk 0:00:06.3]} 57. Kc4 {[%clk 0:00:16]} 57... Kf3 {[%clk 0:00:03.5]} 58.
Rd3+ {[%clk 0:00:14.8]} 58... Ke2 {[%clk 0:00:03.7]} 59. Rd4 {[%clk 0:00:14.7]}
59... Ke3 {[%clk 0:00:03.6]} 60. Rh4 {[%clk 0:00:13.4]} 60... Kd2 {[%clk
0:00:03.2]} 61. Kb4 {[%clk 0:00:12.8]} 61... Kc2 {[%clk 0:00:03.1]} 62. Rh2+
{[%clk 0:00:12.6]} 62... Kb1 {[%clk 0:00:03.2]} 63. Kxa4 {[%clk 0:00:11.1]}
63... Kxa2 {[%clk 0:00:02.9]} 64. b3+ {[%clk 0:00:11.1]} 64... Kb1 {[%clk
0:00:02.9]} 65. Ka3 {[%clk 0:00:11.2]} 65... Kc1 {[%clk 0:00:03]} 66. Kb4 {[%clk
0:00:10.1]} 66... Kd1 {[%clk 0:00:02.3]} 67. Kc3 {[%clk 0:00:09.9]} 67... Ke1
{[%clk 0:00:02.3]} 68. Kd3 {[%clk 0:00:10]} 68... Rd7+ {[%clk 0:00:01.7]} 69.
Ke3 {[%clk 0:00:09.1]} 69... Re7+ {[%clk 0:00:02.4]} 70. Kd4 {[%clk 0:00:08.9]}
70... Rd7+ {[%clk 0:00:02.7]} 71. Ke5 {[%clk 0:00:08.5]} 71... Kd1 {[%clk
0:00:02.8]} 72. Ke6 {[%clk 0:00:07.9]} 72... Rg7 {[%clk 0:00:02.8]} 73. Kd5
{[%clk 0:00:07.5]} 73... Kc1 {[%clk 0:00:02.7]} 74. Kc6 {[%clk 0:00:07.1]} 74...
Rf7 {[%clk 0:00:02.8]} 75. b4 {[%clk 0:00:06.8]} 75... Kb1 {[%clk 0:00:02.9]}
76. b5 {[%clk 0:00:06.3]} 76... Ka1 {[%clk 0:00:02.6]} 77. Rd2 {[%clk 0:00:06]}
77... Rg7 {[%clk 0:00:02.1]} 78. Rd7 {[%clk 0:00:05.8]} 78... Rg6+ {[%clk
0:00:02.2]} 79. Kxc7 {[%clk 0:00:05.8]} 79... Kb2 {[%clk 0:00:02.6]} 80. b6
{[%clk 0:00:06]} 80... Rg5 {[%clk 0:00:02.6]} 81. b7 {[%clk 0:00:05.8]} 81...
Rc5+ {[%clk 0:00:02.7]} 82. Kb6 {[%clk 0:00:05.7]} 82... Rc3 {[%clk 0:00:02.6]}
83. b8=Q {[%clk 0:00:06.1]} 83... Rb3+ {[%clk 0:00:02.9]} 84. Kc7 {[%clk
0:00:06.6]} 84... Ka3 {[%clk 0:00:03.8]} 85. Qa7+ {[%clk 0:00:05.6]} 85... Kb2
{[%clk 0:00:03.7]} 86. Qf2+ {[%clk 0:00:05.1]} 86... Kc3 {[%clk 0:00:04.6]} 87.
Qf3+ {[%clk 0:00:04.9]} 87... Kc4 {[%clk 0:00:05]} 88. Qxb3+ {[%clk 0:00:05.1]}
88... Kxb3 {[%clk 0:00:05.9]} 89. Kb6 {[%clk 0:00:05.2]} 89... Kc4 {[%clk
0:00:06.8]} 90. Kc6 {[%clk 0:00:05.5]} 90... Kc3 {[%clk 0:00:07.2]} 91. Rd5
{[%clk 0:00:05.9]} 91... Kc4 {[%clk 0:00:08.1]} 92. Kd6 {[%clk 0:00:05.9]} 92...
Kc3 {[%clk 0:00:09]} 93. Rc5+ {[%clk 0:00:06.2]} 93... Kb4 {[%clk 0:00:09.3]}
94. Kd5 {[%clk 0:00:05.8]} 94... Ka4 {[%clk 0:00:10.2]} 95. Rc4+ {[%clk
0:00:05.5]} 95... Kb5 {[%clk 0:00:10.5]} 96. Rd4 {[%clk 0:00:05]} 96... Kb6
{[%clk 0:00:11.4]} 97. Rb4+ {[%clk 0:00:05.1]} 97... Kc7 {[%clk 0:00:12.3]} 98.
Kc5 {[%clk 0:00:05.3]} 98... Kd7 {[%clk 0:00:12.6]} 99. Rb6 {[%clk 0:00:05.8]}
99... Kc7 {[%clk 0:00:12.7]} 100. Kb5 {[%clk 0:00:06.2]} 100... Kd7 {[%clk
0:00:13.6]} 101. Rc6 {[%clk 0:00:06.1]} 101... Ke7 {[%clk 0:00:13.5]} 102. Kc5
{[%clk 0:00:06.5]} 102... Kd7 {[%clk 0:00:14.4]} 103. Rd6+ {[%clk 0:00:07]}
103... Ke7 {[%clk 0:00:15.3]} 104. Kd5 {[%clk 0:00:05.5]} 104... Kf7 {[%clk
0:00:16.2]} 105. Re6 {[%clk 0:00:05.8]} 105... Kf8 {[%clk 0:00:16.2]} 106. Ke5
{[%clk 0:00:06]} 106... Kf7 {[%clk 0:00:17.1]} 107. Kf5 {[%clk 0:00:06.2]}
107... Kg7 {[%clk 0:00:18]} 108. Rf6 {[%clk 0:00:06.3]} 108... Kh7 {[%clk
0:00:18.2]} 109. Kg5 {[%clk 0:00:06.5]} 109... Kg7 {[%clk 0:00:19.1]} 110. Rf5
{[%clk 0:00:06.3]} 110... Kg8 {[%clk 0:00:19.1]} 111. Kg6 {[%clk 0:00:05.9]} 1-0